bitfinex/quotes_SOLUSD_20250717
["timestamp","ask_amount","ask_price","bid_price","bid_amount"]
[1752736711216,0.69,172.5,172.47,31.31]
[1752736711416,0.69,172.5,172.47,36.26414629]
[1752736711615,0.69,172.5,172.48,4.95414629]
[1752736712323,0.69,172.5,172.48,10.75188239]
[1752736713124,0.69,172.52,172.49,4.95414629]
[1752736713427,1.6313,172.53,172.48,10.75188239]
[1752736713428,4.95414629,172.53,172.48,10.75188239]
[1752736713598,0.69,172.51,172.48,42.01188239]
[1752736713801,0.69,172.5,172.48,42.01188239]
[1752736714302,0.69,172.52,172.48,42.01188239]
[1752736714539,0.69,172.51,172.48,42.01188239]
[1752736715502,0.69,172.51,172.49,4.95414629]
[1752736716725,0.69,172.51,172.48,37.0577361]
[1752736716726,0.69,172.51,172.48,42.01188239]
[1752736716928,0.69,172.5,172.48,42.01188239]
[1752736717225,0.69,172.5,172.48,31.26]
[1752736717531,0.69,172.5,172.47,5.82807679]
[1752736717699,0.69,172.5,172.47,42.02222308]
[1752736718121,0.69,172.5,172.48,4.95414629]
[1752736718332,4.95414629,172.52,172.48,4.95414629]
[1752736718333,0.69,172.52,172.48,4.95414629]
[1752736718534,0.06,172.54,172.5,4.95414629]
[1752736718703,0.69,172.53,172.5,4.95414629]
[1752736719008,0.69,172.52,172.49,31.24]
[1752736719210,10.81001373,172.54,172.49,4.95414629]
[1752736719211,0.69,172.51,172.49,4.95414629]
[1752736719520,10.81001373,172.54,172.49,31.24]
[1752736719521,0.69,172.5,172.49,31.24]
[1752736720027,5.64414629,172.5,172.47,0.03]
[1752736720529,0.69,172.49,172.47,0.03]
[1752736720934,0.69,172.48,172.47,0.03]
[1752736721617,5.64414629,172.5,172.47,0.03]
[1752736722008,0.69,172.49,172.47,0.03]
[1752736723916,5.64414629,172.48,172.45,0.03]
[1752736724124,4.95414629,172.46,172.45,0.03]
[1752736724521,5.64414629,172.46,172.45,0.03]
[1752736728141,11.4425923,172.46,172.45,0.03]
[1752736730832,42.6425923,172.46,172.45,0.03]
[1752736734116,59.42727627,172.46,172.45,0.03]
[1752736734317,65.99252256,172.46,172.45,0.03]
[1752736734842,164.88468397,172.45,172.4,0.03]
[1752736735141,4.95414629,172.41,172.4,0.03]
[1752736735322,10.75427389,172.41,172.4,0.03]
[1752736735528,11.45427389,172.41,172.4,0.03]
[1752736736042,28.23895786,172.41,172.4,0.03]
[1752736738272,28.73895786,172.41,172.4,0.03]
[1752736738426,16.78468397,172.4,172.34,0.03]
[1752736738631,4.95414629,172.35,172.34,0.03]
[1752736738857,36.13414629,172.35,172.34,0.03]
[1752736739168,36.83414629,172.35,172.34,0.03]
[1752736739333,41.78829258,172.35,172.34,0.03]
[1752736739532,44.79154865,172.35,172.34,0.03]
[1752736740368,36.83414629,172.35,172.34,0.03]
[1752736740660,31.88,172.35,172.34,0.03]
[1752736741347,31.18,172.35,172.34,0.03]
[1752736741862,42.63629308,172.35,172.34,0.03]
[1752736742458,36.83414629,172.35,172.34,0.03]
[1752736742947,31.88,172.35,172.34,0.03]
[1752736743140,36.83414629,172.35,172.34,0.03]
[1752736744467,43.13629308,172.35,172.34,0.03]
[1752736745956,38.18214679,172.35,172.34,0.03]
[1752736746160,42.63629308,172.35,172.34,0.03]
[1752736747455,37.68214679,172.35,172.34,0.03]
[1752736747644,42.63629308,172.35,172.34,0.03]
[1752736747855,148.1,172.38,172.34,0.03]
[1752736748048,148.1,172.38,172.36,4.95414629]
[1752736748251,148.1,172.38,172.37,4.95414629]
[1752736748470,148.1,172.38,172.36,5.62414629]
[1752736748653,148.1,172.38,172.36,4.95414629]
[1752736748864,148.1,172.38,172.35,4.95414629]
[1752736749177,148.8,172.38,172.35,4.95414629]
[1752736749595,148.8,172.38,172.34,6.50241802]
[1752736749783,148.8,172.38,172.35,4.95414629]
[1752736749950,5.65414629,172.37,172.34,0.03]
[1752736750355,0.7,172.36,172.34,0.03]
[1752736750578,42.61596077,172.36,172.34,0.03]
[1752736750875,0.7,172.35,172.34,0.03]
[1752736751283,5.65414629,172.35,172.34,0.03]
[1752736751662,0.7,172.35,172.34,0.03]
[1752736751975,11.45629308,172.35,172.34,0.03]
[1752736754456,6.50214679,172.35,172.34,0.03]
[1752736754675,11.45629308,172.35,172.34,0.03]
[1752736755160,10.75629308,172.35,172.34,0.03]
[1752736755357,11.45629308,172.35,172.34,0.03]
[1752736755582,31.14,172.36,172.34,0.7]
[1752736755764,31.14,172.37,172.34,0.7]
[1752736755964,159.55550545,172.38,172.34,0.03]
[1752736756174,190.69550545,172.38,172.34,0.03]
[1752736756686,179.94,172.38,172.34,4.98414629]
[1752736756872,11.51471373,172.4,172.35,5.62414629]
[1752736757182,42.65471373,172.4,172.35,5.62414629]
[1752736757560,0.7,172.39,172.35,5.62414629]
[1752736758058,36.77414629,172.38,172.34,0.03]
[1752736758279,5.65414629,172.37,172.34,0.03]
[1752736758881,0.7,172.36,172.34,0.03]
[1752736759088,5.65414629,172.36,172.34,0.03]
[1752736761384,4.95414629,172.35,172.34,0.03]
[1752736761785,5.63414629,172.35,172.34,0.03]
[1752736762581,11.43629308,172.35,172.34,0.03]
[1752736764272,28.22097705,172.35,172.34,0.03]
[1752736765168,23.26683076,172.35,172.34,0.03]
[1752736765561,28.22097705,172.35,172.34,0.03]
[1752736766666,5.63414629,172.37,172.34,0.03]
[1752736766869,31.1,172.36,172.34,0.03]
[1752736767761,36.90208626,172.36,172.34,0.03]
[1752736769161,5.80208626,172.36,172.34,0.03]
[1752736769562,0.68,172.35,172.34,0.03]
[1752736769762,5.80214679,172.35,172.34,0.03]
[1752736769983,5.80192931,172.36,172.34,0.03]
[1752736770187,31.1,172.37,172.34,0.03]
[1752736770689,36.90156942,172.37,172.34,0.03]
[1752736771569,0.68,172.36,172.34,0.03]
[1752736771774,6.48212571,172.36,172.34,0.03]
[1752736773093,0.68,172.36,172.34,0.03]
[1752736773299,36.90159263,172.37,172.34,0.03]
[1752736773671,37.58159263,172.37,172.34,0.03]
[1752736774261,0.68,172.36,172.34,0.03]
[1752736775206,6.48203979,172.36,172.34,0.03]
[1752736778771,0.68,172.35,172.34,0.03]
[1752736779199,5.80203979,172.36,172.34,0.03]
[1752736779402,6.48203979,172.36,172.34,0.03]
[1752736780081,0.68,172.36,172.34,0.03]
[1752736780278,41.85570791,172.37,172.34,0.03]
[1752736780771,5.63414629,172.36,172.34,0.03]
[1752736781184,0.68,172.36,172.34,0.03]
[1752736781402,42.49629308,172.35,172.34,0.03]
[1752736781699,37.54214679,172.35,172.34,0.03]
[1752736782293,42.49629308,172.35,172.34,0.03]
[1752736782799,37.54214679,172.35,172.34,0.03]
[1752736783487,31.72,172.37,172.34,0.03]
[1752736783806,36.67414629,172.37,172.34,0.03]
[1752736783986,4.95414629,172.35,172.34,0.03]
[1752736784193,35.99414629,172.35,172.34,0.03]
[1752736784394,36.67414629,172.35,172.34,0.03]
[1752736785593,42.47629308,172.35,172.34,0.03]
[1752736788717,64.21512334,172.35,172.34,0.03]
[1752736792191,59.26097705,172.35,172.34,0.03]
[1752736794296,26.0,172.31,172.29,0.03]
[1752736794504,184.07414629,172.3,172.29,0.03]
[1752736795018,184.73414629,172.3,172.29,0.03]
[1752736796191,190.53797681,172.3,172.29,0.03]
[1752736796424,184.92383052,172.3,172.29,0.74]
[1752736796725,153.90383052,172.3,172.29,0.74]
[1752736796901,153.90383052,172.3,172.29,0.03]
[1752736800100,158.85797681,172.3,172.29,0.03]
[1752736800299,159.51797681,172.3,172.29,0.03]
[1752736800517,176.30266078,172.3,172.29,0.03]
[1752736801727,176.30266078,172.3,172.29,1e-08]
[1752736802110,28.20266078,172.3,172.29,1e-08]
[1752736802508,28.20266078,172.3,172.27,0.03]
[1752736802509,42.78468397,172.28,172.27,1e-08]
[1752736802713,83.69297655,172.28,172.27,1e-08]
[1752736803018,84.35297655,172.28,172.22,0.03]
[1752736803220,26.0,172.21,172.16,0.75229457]
[1752736803398,4.95414629,172.17,172.16,0.2]
[1752736803599,31.0,172.17,172.16,0.2]
[1752736803835,36.61414629,172.17,172.16,0.2]
[1752736804207,41.7623591,172.17,172.16,0.2]
[1752736804706,31.0,172.17,172.16,0.91]
[1752736805023,31.0,172.18,172.16,0.91]
[1752736805211,35.95414629,172.18,172.16,0.91]
[1752736805804,31.0,172.19,172.17,5.66414629]
[1752736806026,148.1,172.2,172.18,0.71]
[1752736806331,4.95414629,172.22,172.19,0.71]
[1752736806708,41.7604048,172.23,172.19,0.71]
[1752736807225,31.0,172.23,172.2,0.71]
[1752736807428,35.95414629,172.24,172.2,0.71]
[1752736807606,41.76011186,172.24,172.2,0.71]
[1752736808304,4.95414629,172.23,172.2,0.71]
[1752736809112,4.95414629,172.23,172.18,11.47200749]
[1752736809335,4.95414629,172.23,172.18,10.76200749]
[1752736809521,5.61414629,172.23,172.18,5.66414629]
[1752736809705,35.93414629,172.22,172.18,0.71]
[1752736810116,4.95414629,172.21,172.16,26.91]
[1752736810439,4.95414629,172.2,172.16,26.91]
[1752736810610,5.61414629,172.2,172.16,26.91]
[1752736810811,36.59414629,172.2,172.16,26.91]
[1752736811028,4.95414629,172.2,172.16,26.91]
[1752736811227,179.08,172.23,172.19,4.95414629]
[1752736811430,179.08,172.23,172.2,0.71]
[1752736811431,148.1,172.23,172.2,0.71]
[1752736811608,148.1,172.23,172.21,5.66414629]
[1752736811815,5.61414629,172.28,172.22,5.66414629]
[1752736812139,30.98,172.27,172.23,5.66414629]
[1752736812432,30.98,172.27,172.22,4.95414629]
[1752736812433,42.39906793,172.27,172.22,4.95414629]
[1752736812844,0.66,172.26,172.22,4.95414629]
[1752736813020,4.95414629,172.23,172.2,8.1507]
[1752736813216,4.95414629,172.23,172.19,0.71]
[1752736813528,4.95414629,172.22,172.19,0.71]
[1752736813708,5.61414629,172.22,172.17,31.66414629]
[1752736814034,4.95414629,172.22,172.18,0.71]
[1752736814671,10.76086179,172.22,172.18,0.71]
[1752736816712,148.1,172.26,172.21,4.95414629]
[1752736816911,148.1,172.26,172.17,36.76234949]
[1752736816912,148.1,172.26,172.22,5.66414629]
[1752736817111,148.1,172.26,172.23,5.66414629]
[1752736817632,148.1,172.26,172.23,0.71]
[1752736817935,153.90519274,172.26,172.22,4.95414629]
[1752736818106,154.56519274,172.26,172.22,4.95414629]
[1752736818309,159.51933903,172.26,172.21,5.66414629]
[1752736818517,5.61414629,172.25,172.2,30.95414629]
[1752736818740,11.41987456,172.25,172.2,30.95414629]
[1752736818948,4.95414629,172.23,172.19,26.0]
[1752736819157,4.95414629,172.22,172.2,26.0]
[1752736819450,30.96,172.23,172.2,26.0]
[1752736819642,35.91414629,172.23,172.2,26.0]
[1752736819830,35.91414629,172.23,172.2,0.71]
[1752736820018,36.57414629,172.23,172.2,26.0]
[1752736820220,36.57414629,172.23,172.16,7.9424]
[1752736820221,4.95414629,172.21,172.16,7.9424]
[1752736820418,4.95414629,172.2,172.16,7.9424]
[1752736820735,37.42687962,172.21,172.16,8.6524]
[1752736820927,148.1,172.22,172.19,8.08994641]
[1752736821124,148.1,172.22,172.19,8.79994641]
[1752736823728,148.1,172.22,172.19,8.08994641]
[1752736823923,162.66653459,172.22,172.17,14.55809409]
[1752736824650,162.66653459,172.22,172.17,8.74994641]
[1752736825137,162.66653459,172.22,172.17,13.8981501]
[1752736825334,148.1,172.22,172.18,8.74994641]
[1752736825536,148.1,172.22,172.21,8.08994641]
[1752736825845,148.1,172.22,172.21,8.74994641]
[1752736826138,30.94,172.25,172.21,8.74994641]
[1752736826341,30.94,172.25,172.22,0.66]
[1752736826544,8.08994641,172.26,172.22,0.66]
[1752736826839,0.67,172.25,172.19,0.66]
[1752736827026,0.67,172.25,172.21,8.08994641]
[1752736827428,6.47552007,172.25,172.19,5.8074367]
[1752736827633,8.08994641,172.23,172.17,0.66]
[1752736827834,8.08994641,172.22,172.17,8.74994641]
[1752736828157,8.75994641,172.22,172.17,8.74994641]
[1752736828359,8.75994641,172.21,172.17,0.66]
[1752736828820,8.08994641,172.22,172.17,14.55805233]
[1752736829019,14.56658273,172.22,172.17,14.55805233]
[1752736829222,0.67,172.21,172.16,52.78080223]
[1752736829551,0.67,172.21,172.16,53.44080223]
[1752736829752,0.67,172.21,172.16,45.35085582]
[1752736829927,0.67,172.2,172.16,39.5424]
[1752736830128,14.56658273,172.22,172.16,53.44088804]
[1752736830328,14.56658273,172.22,172.17,0.66]
[1752736830528,8.08994641,172.21,172.17,0.66]
[1752736830848,8.75994641,172.21,172.17,0.66]
[1752736831241,8.08994641,172.23,172.18,8.74994641]
[1752736831426,8.08994641,172.23,172.19,0.66]
[1752736831632,192.93590655,172.24,172.19,8.74994641]
[1752736831953,192.93590655,172.24,172.2,0.66]
[1752736832129,184.84596014,172.24,172.2,8.74994641]
[1752736832445,184.84596014,172.24,172.17,5.80810876]
[1752736832446,161.99590655,172.24,172.19,8.08994641]
[1752736832621,0.67,172.23,172.19,8.08994641]
[1752736832823,148.1,172.24,172.2,8.08994641]
[1752736833038,5.80564125,172.25,172.2,8.08994641]
[1752736833039,157.27763837,172.28,172.23,8.08994641]
[1752736833246,0.67,172.27,172.23,8.08994641]
[1752736833423,0.67,172.26,172.22,8.08994641]
[1752736834029,6.47527904,172.26,172.22,8.08994641]
[1752736834230,6.47527904,172.26,172.21,6.46685482]
[1752736834426,6.47527904,172.26,172.22,8.08994641]
[1752736834826,8.08994641,172.24,172.18,13.89769861]
[1752736835127,8.08994641,172.23,172.18,44.81769861]
[1752736835328,8.75994641,172.23,172.18,8.74994641]
[1752736835557,8.75994641,172.22,172.17,8.08994641]
[1752736835845,8.75994641,172.21,172.16,34.6024]
[1752736836046,14.56696803,172.21,172.16,40.41088982]
[1752736836223,0.67,172.2,172.16,40.41088982]
[1752736836619,8.08994641,172.2,172.16,26.2]
[1752736836833,0.67,172.19,172.16,26.2]
[1752736837224,8.08994641,172.2,172.16,26.2]
[1752736837425,13.89696803,172.21,172.16,0.2]
[1752736837628,8.75994641,172.2,172.16,0.2]
[1752736838044,6.47721381,172.2,172.16,0.2]
[1752736838352,0.67,172.19,172.16,0.2]
[1752736839428,14.5676317,172.19,172.16,0.2]
[1752736839657,0.67,172.19,172.16,0.2]
[1752736839833,13.89726919,172.2,172.16,0.2]
[1752736840036,14.56726919,172.2,172.16,0.2]
[1752736841054,6.47732278,172.2,172.16,8.94994641]
[1752736842048,5.80732278,172.2,172.16,8.94994641]
[1752736842249,6.47732278,172.2,172.16,8.28994641]
[1752736842936,5.63700052,172.19,172.16,0.2]
[1752736843250,4.96700052,172.17,172.16,0.2]
[1752736843561,4.96700052,172.17,172.15,0.03]
[1752736843562,26.0,172.16,172.15,0.03]
[1752736843854,4.96700052,172.11,172.06,4.96700052]
[1752736844042,10.77740282,172.11,172.06,4.96700052]
[1752736844238,11.44740282,172.11,172.06,4.96700052]
[1752736844429,11.44740282,172.11,172.05,5.81203618]
[1752736844629,11.44740282,172.11,172.06,4.96700052]
[1752736845049,14.58239731,172.11,172.06,8.10199501]
[1752736845254,0.67,172.1,172.06,8.10199501]
[1752736846142,0.67,172.1,172.06,13.91390612]
[1752736846347,0.67,172.1,172.06,8.10199501]
[1752736846830,14.58257025,172.1,172.04,8.10199501]
[1752736847029,14.58257025,172.1,172.05,8.10199501]
[1752736847240,13.91224724,172.11,172.06,8.10199501]
[1752736847443,0.67,172.1,172.06,8.10199501]
[1752736848145,6.48057524,172.1,172.06,8.10199501]
[1752736848557,8.10199501,172.11,172.06,13.91388534]
[1752736848857,0.67,172.12,172.08,8.10199501]
[1752736849243,36.68929487,172.14,172.1,8.10199501]
[1752736849457,0.67,172.13,172.09,0.03]
[1752736849636,8.77199501,172.13,172.09,0.03]
[1752736849840,0.67,172.12,172.09,0.03]
[1752736850758,6.47990823,172.12,172.09,0.03]
[1752736851161,0.67,172.12,172.09,8.13199501]
[1752736851339,14.63150005,172.14,172.09,8.13199501]
[1752736851743,0.72,172.13,172.09,0.03]
[1752736851949,8.82199501,172.13,172.09,8.13199501]
[1752736852143,0.72,172.12,172.09,8.13199501]
[1752736852349,6.53030668,172.11,172.09,0.03]
[1752736853746,0.72,172.1,172.09,0.03]
[1752736853965,5.81030668,172.11,172.09,0.03]
[1752736854163,6.53030668,172.11,172.09,0.03]
[1752736855163,0.72,172.1,172.09,0.03]
[1752736855369,8.82199501,172.1,172.09,0.03]
[1752736855551,14.63257025,172.1,172.09,0.03]
[1752736858281,6.53057524,172.1,172.09,0.03]
[1752736858488,14.63257025,172.1,172.09,0.03]
[1752736860084,62.27725422,172.1,172.09,0.03]
[1752736861496,65.19745031,172.1,172.09,0.03]
[1752736865079,62.06952497,172.1,172.09,0.03]
[1752736865483,57.0954553,172.1,172.09,0.03]
[1752736865893,62.06952497,172.1,172.09,0.03]
[1752736867285,57.0954553,172.1,172.09,0.03]
[1752736867507,62.06952497,172.1,172.09,0.03]
[1752736867678,62.06952497,172.1,172.02,0.03]
[1752736867679,16.78468397,172.06,172.02,0.03]
[1752736867879,4.97406967,172.03,172.02,0.03]
[1752736868076,35.81406967,172.03,172.02,0.03]
[1752736868283,36.53406967,172.03,172.02,0.03]
[1752736868493,53.31875364,172.03,172.02,0.03]
[1752736868702,53.81875364,172.03,172.02,0.03]
[1752736869102,53.31875364,172.03,172.02,0.03]
[1752736869486,59.13169324,172.03,172.02,0.03]
[1752736870598,42.34700927,172.03,172.02,0.03]
[1752736871109,36.6529396,172.03,172.02,0.03]
[1752736871304,42.34700927,172.03,172.02,0.03]
[1752736871490,59.13169324,172.03,172.02,0.03]
[1752736871684,59.13169324,172.03,171.98,0.2]
[1752736871685,164.88468397,172.02,171.98,0.2]
[1752736871886,4.97406967,171.99,171.98,0.2]
[1752736872087,35.79406967,171.99,171.98,0.2]
[1752736872318,53.29875364,171.99,171.98,0.2]
[1752736872489,164.88468397,171.98,171.88,4.97406967]
[1752736872681,164.88468397,171.98,171.86,8.8509]
[1752736872682,16.78468397,171.96,171.87,0.71]
[1752736872883,4.97406967,171.93,171.87,6.52833137]
[1752736873111,30.82,171.92,171.88,0.71]
[1752736873315,31.54,171.92,171.88,5.68406967]
[1752736873492,41.61072858,171.92,171.88,0.71]
[1752736873694,42.33072858,171.92,171.86,5.68406967]
[1752736874205,42.33072858,171.92,171.86,0.71]
[1752736874410,42.33072858,171.92,171.86,5.68406967]
[1752736874606,42.33072858,171.92,171.87,5.68406967]
[1752736874804,30.82,171.92,171.89,0.71]
[1752736875010,30.82,171.92,171.88,8.11958195]
[1752736875314,45.47624086,171.92,171.87,8.11958195]
[1752736875514,45.47624086,171.92,171.85,26.71]
[1752736876016,62.26092483,171.92,171.83,0.71]
[1752736876229,16.78468397,171.91,171.8,5.82065389]
[1752736876399,8.11958195,171.87,171.82,8.11958195]
[1752736876609,30.82,171.86,171.83,0.71]
[1752736876918,30.82,171.86,171.84,0.71]
[1752736877236,30.82,171.87,171.84,0.71]
[1752736877392,38.93958195,171.87,171.82,8.82958195]
[1752736877588,5.81868963,171.86,171.83,8.82958195]
[1752736878206,5.81868963,171.86,171.83,0.71]
[1752736878793,5.81868963,171.86,171.83,8.82958195]
[1752736879019,36.63844902,171.87,171.84,0.71]
[1752736879212,0.72,171.92,171.86,8.11958195]
[1752736879395,14.53963674,171.95,171.89,8.11958195]
[1752736879396,8.11958195,171.95,171.89,8.11958195]
[1752736879601,30.82,171.94,171.91,8.11958195]
[1752736879799,30.82,171.94,171.92,8.11958195]
[1752736880097,30.82,171.94,171.91,8.82958195]
[1752736880301,30.82,171.94,171.91,0.71]
[1752736880598,38.93958195,171.95,171.89,8.82958195]
[1752736880910,8.11958195,171.9,171.82,0.71]
[1752736881129,8.11958195,171.86,171.82,0.71]
[1752736881300,8.11958195,171.85,171.81,7.7617]
[1752736881628,8.11958195,171.84,171.81,8.4417]
[1752736881831,5.81919108,171.85,171.81,8.4417]
[1752736881832,6.49919108,171.85,171.81,0.68]
[1752736882002,13.93877303,171.85,171.81,0.68]
[1752736882208,44.75877303,171.85,171.81,0.68]
[1752736882914,8.79958195,171.84,171.79,8.11958195]
[1752736883104,31.5,171.83,171.77,8.6423]
[1752736883304,13.93877303,171.85,171.8,8.11958195]
[1752736883516,36.63944957,171.84,171.81,8.79958195]
[1752736883811,36.63944957,171.84,171.81,0.71]
[1752736884014,36.63944957,171.84,171.81,0.03]
[1752736884420,0.68,171.89,171.83,8.11958195]
[1752736884615,13.93624086,171.92,171.87,8.11958195]
[1752736884815,5.81636404,171.93,171.9,8.11958195]
[1752736885019,6.72965248,171.98,171.92,8.11958195]
[1752736885223,5.81467188,171.98,171.95,8.11958195]
[1752736885421,5.81467188,171.98,171.94,8.11958195]
[1752736885734,5.81467188,171.98,171.94,0.68]
[1752736886047,14.61425383,171.98,171.93,8.11958195]
[1752736886756,14.61425383,171.98,171.93,8.79958195]
[1752736887254,8.79958195,171.97,171.92,8.11958195]
[1752736888021,8.79958195,171.97,171.9,5.81723565]
[1752736888219,8.79958195,171.97,171.92,8.79958195]
[1752736888528,30.82,171.99,171.92,8.79958195]
[1752736888529,36.63437302,171.99,171.93,8.79958195]
[1752736888948,36.63437302,171.99,171.93,8.11958195]
[1752736889162,0.68,171.98,171.92,8.11958195]
[1752736889448,8.11958195,171.95,171.9,0.68]
[1752736889646,8.11958195,171.95,171.9,8.79958195]
[1752736890017,8.79958195,171.97,171.91,0.68]
[1752736890263,8.61958195,171.98,171.93,8.11958195]
[1752736890434,38.93958195,171.99,171.94,8.79958195]
[1752736890752,8.11958195,171.96,171.91,8.79958195]
[1752736891058,8.11958195,171.96,171.92,0.68]
[1752736891235,8.11958195,171.97,171.92,8.79958195]
[1752736891555,8.79958195,171.97,171.92,8.79958195]
[1752736891745,5.81530588,171.96,171.92,0.68]
[1752736891922,13.93488783,171.96,171.92,0.68]
[1752736892233,8.11958195,171.96,171.92,0.68]
[1752736892640,14.61462267,171.97,171.92,8.79958195]
[1752736892837,13.93462267,171.97,171.93,0.68]
[1752736893416,13.93424056,171.98,171.93,8.11958195]
[1752736893634,13.93424056,171.98,171.94,0.68]
[1752736894561,8.11958195,171.96,171.91,0.68]
[1752736894767,8.11958195,171.97,171.92,8.11958195]
[1752736894967,8.11958195,171.97,171.93,0.68]
[1752736895260,8.11958195,171.96,171.91,0.68]
[1752736895463,8.11958195,171.96,171.92,8.11958195]
[1752736895641,5.81465861,171.98,171.93,8.79958195]
[1752736895642,13.93424056,171.98,171.93,8.79958195]
[1752736895840,44.75387825,171.99,171.94,8.79958195]
[1752736896060,0.5,171.96,171.95,8.79958195]
[1752736896367,36.63442723,171.99,171.95,8.79958195]
[1752736896782,30.82,171.99,171.95,8.79958195]
[1752736896960,36.63429704,171.99,171.95,8.79958195]
[1752736897302,44.75387899,171.99,171.95,0.68]
[1752736897841,30.82,171.99,171.96,8.79958195]
[1752736898036,13.93358612,172.0,171.96,0.68]
[1752736898277,8.11958195,171.99,171.95,8.11958195]
[1752736898447,8.11958195,171.99,171.95,8.79958195]
[1752736898647,30.78,172.02,171.95,8.79958195]
[1752736898648,0.68,172.03,171.98,8.11958195]
[1752736898976,8.79958195,172.03,171.98,8.79958195]
[1752736899352,8.79958195,172.03,171.99,8.11958195]
[1752736899558,8.79958195,172.03,171.99,8.79958195]
[1752736899761,13.9325762,172.03,171.99,0.68]
[1752736900380,8.11958195,172.0,171.95,6.6512]
[1752736900571,8.11958195,171.99,171.95,7.3312]
[1752736900760,14.61394241,171.99,171.94,1.6098]
[1752736900945,8.11958195,171.98,171.94,1.6098]
[1752736901163,8.79958195,171.98,171.94,1.6098]
[1752736901361,8.11958195,171.97,171.94,1.6098]
[1752736901562,8.11958195,171.97,171.93,6.4962766]
[1752736901772,8.11958195,171.97,171.93,0.68]
[1752736902194,8.11958195,171.96,171.93,0.68]
[1752736902494,8.11958195,171.96,171.91,21.10743157]
[1752736902668,8.79958195,171.97,171.92,8.79958195]
[1752736902877,5.81485542,171.98,171.93,8.79958195]
[1752736903186,13.93443737,171.98,171.93,8.79958195]
[1752736903359,14.61443737,171.98,171.93,8.79958195]
[1752736903557,14.61443737,171.98,171.94,0.68]
[1752736903754,8.11958195,171.97,171.94,0.68]
[1752736903958,8.11958195,171.97,171.92,14.61622208]
[1752736904190,14.61443737,171.98,171.93,8.79958195]
[1752736904384,31.46,172.0,171.95,8.11958195]
[1752736904579,8.11958195,172.01,171.96,8.79958195]
[1752736904770,14.61327532,172.01,171.96,8.79958195]
[1752736904966,6.49369337,172.01,171.96,8.79958195]
[1752736905263,14.61327532,172.01,171.96,8.79958195]
[1752736905462,8.11958195,172.0,171.96,0.68]
[1752736905664,14.61355229,172.0,171.96,0.68]
[1752736906161,14.61355229,172.0,171.95,8.11958195]
[1752736906358,0.06,171.98,171.95,8.79958195]
[1752736906791,0.06,171.98,171.95,0.68]
[1752736906991,8.11958195,171.97,171.92,6.49658209]
[1752736907278,0.06,171.98,171.94,8.11958195]
[1752736907667,0.06,171.98,171.96,8.11958195]
[1752736908159,0.06,171.98,171.96,0.68]
[1752736908366,0.06,171.98,171.96,8.79958195]
[1752736908680,0.74,171.98,171.94,8.79958195]
[1752736909182,0.06,171.98,171.94,8.79958195]
[1752736909387,5.87470628,171.98,171.91,6.4909]
[1752736909593,8.85958195,171.98,171.93,8.11958195]
[1752736909768,0.74,171.98,171.94,8.79958195]
[1752736910087,0.06,171.98,171.94,8.79958195]
[1752736910384,0.06,171.98,171.95,8.79958195]
[1752736911172,0.06,171.98,171.95,0.68]
[1752736911384,8.11958195,171.97,171.92,8.83958195]
[1752736911581,1.16,171.97,171.93,0.72]
[1752736911894,1.16,171.97,171.93,8.83958195]
[1752736912394,0.5,171.97,171.93,8.83958195]
[1752736912590,0.5,171.97,171.94,0.72]
[1752736912781,0.5,171.97,171.95,8.83958195]
[1752736913304,0.06,171.98,171.95,8.83958195]
[1752736914975,0.06,171.98,171.96,8.83958195]
[1752736916078,0.5,171.97,171.96,8.83958195]
[1752736916386,0.06,171.98,171.96,8.83958195]
[1752736916580,0.06,171.98,171.97,8.83958195]
[1752736916770,0.06,171.98,171.97,0.72]
[1752736918698,0.06,172.05,171.97,39.11063364]